[Event "FIDE WCCC Girls-10 2024"]
[Site "Montesilvano"]
[Date "2024.11.18"]
[Round "4.33"]
[White "Babii, Oriiana"]
[Black "Shtepa, Liubov"]
[Result "0-1"]
[Annotator "NA RC"]
[ECO "C44"]
[WhiteElo "1481"]
[BlackElo "1615"]
[PlyCount "90"]
[EventDate "2024.11.18"]
[EventType "swiss"]
[EventCountry "ITA"]
[SourceTitle "playchess.com"]
[Source "ChessBase"]
[SourceQuality "1"]
[TimeControl "5400+30"]

1. e4 {[%emt 0:00:02]} e5 {[%emt 0:00:03]} 2. Nf3 {[%emt 0:00:07]} Nc6 {[%emt 0:00:04]} 3. d4 {[%emt 0:00:24]} exd4 {[%emt 0:00:17]} 4. Bc4 {[%emt 0:00:21]} Bb4+ {[%emt 0:01:27]} 5. c3 dxc3 {[%emt 0:05:09]} 6. O-O {[%emt 0:01:46]} Nf6 {[%emt 0:00:26]} 7. a3 {[%emt 0:02:24]} Be7 {[%emt 0:03:52]} 8. Nxc3 {[%emt 0:01:04]} d6 {[%emt 0:03:49]} 9. Qb3 O-O {[%emt 0:07:19]} 10. Ng5 {[%emt 0:09:56]} Qe8 {[%emt 0:00:09]} 11. Nb5 {[%emt 0:02:22]} Na5 {[%emt 0:05:44]} 12. Qc3 {[%emt 0:03:48]} Nxc4 {[%emt 0:07:07]} 13. Nxc7 {[%emt 0:01:44]} Qc6 {[%emt 0:05:20]} 14. Nxa8 {[%emt 0:02:43]} h6 {[%emt 0:03:05]} 15. b3 {[%emt 0:06:20]} hxg5 {[%emt 0:08:12]} 16. Qxc4 {[%emt 0:01:38]} Qxc4 {[%emt 0:01:09]} 17. bxc4 {[%emt 0:00:24]} Bd8 {[%emt 0:03:31]} 18. Bxg5 {[%emt 0:05:37]} b6 {[%emt 0:01:02]} 19. Rfd1 {[%emt 0:01:10]} Bb7 {[%emt 0:01:10]} 20. Bxf6 {[%emt 0:03:13]} Bxf6 {[%emt 0:08:33]} 21. Rac1 {[%emt 0:01:55]} Bxa8 {[%emt 0:00:16]} 22. Rxd6 {[%emt 0:03:23]} Bb2 {[%emt 0:00:58]} 23. Rcd1 {[%emt 0:00:36]} Bxa3 {[%emt 0:00:25]} 24. Rd8 {[%emt 0:01:45]} Bxe4 {[%emt 0:00:50]} 25. Rxf8+ {[%emt 0:05:31]} Kxf8 {[%emt 0:00:37]} 26. Ra1 {[%emt 0:01:12]} Bc5 {[%emt 0:00:44]} 27. Rxa7 {[%emt 0:00:47]} Bd3 {[%emt 0:01:42]} 28. Ra8+ {[%emt 0:01:13]} Ke7 {[%emt 0:00:19]} 29. g3 {[%emt 0:04:36]} Bxc4 {[%emt 0:01:42]} 30. Ra7+ {[%emt 0:01:16]} Kf6 {[%emt 0:00:20]} 31. Rc7 {[%emt 0:02:05]} Be6 {[%emt 0:00:09]} 32. Kg2 {[%emt 0:01:56]} Be7 {[%emt 0:01:15]} 33. Rc6 {[%emt 0:01:52]} b5 {[%emt 0:00:23]} 34. Rb6 {[%emt 0:00:40]} b4 {[%emt 0:00:09]} 35. Kf3 {[%emt 0:01:18]} b3 {[%emt 0:00:09]} 36. h4 {[%emt 0:05:30]} Ba3 {[%emt 0:00:24]} 37. g4 {[%emt 0:01:46]} b2 {[%emt 0:00:07]} 38. g5+ {[%emt 0:01:36]} Kg6 {[%emt 0:00:18]} 39. Ke2 {[%emt 0:07:43]} Kh5 {[%emt 0:00:21]} 40. g6 {[%emt 0:03:34]} fxg6 {[%emt 0:00:32]} 41. Kf3 {[%emt 0:01:34]} Bf5 {[%emt 0:00:27]} 42. Rb8 {[%emt 0:00:35]} g5 {[%emt 0:31:55]} 43. Rh8+ {[%emt 0:14:34]} Kg6 {[%emt 0:00:00]} 44. h5+ {[%emt 0:00:00]} Kf7 {[%emt 0:00:00]} 45. h6 {[%emt 0:00:00]} b1=Q {[%emt 0:01:30]} 0-1

[Event "FIDE WCCC Girls-10 2024"]
[Site "Montesilvano"]
[Date "2024.11.18"]
[Round "4.34"]
[White "Gastaldo, Agathe"]
[Black "Pambieri, Nicole"]
[Result "0-1"]
[Annotator "NA RC"]
[ECO "C45"]
[WhiteElo "1589"]
[BlackElo "1482"]
[PlyCount "64"]
[EventDate "2024.11.18"]
[EventType "swiss"]
[EventCountry "ITA"]
[SourceTitle "playchess.com"]
[Source "ChessBase"]
[SourceQuality "1"]
[TimeControl "5400+30"]

1. e4 {[%emt 0:00:07]} e5 {[%emt 0:00:07]} 2. Nf3 {[%emt 0:00:10]} Nc6 {[%emt 0:00:13]} 3. d4 {[%emt 0:00:58]} exd4 {[%emt 0:00:10]} 4. Nxd4 {[%emt 0:00:29]} Bc5 {[%emt 0:00:21]} 5. Nxc6 {[%emt 0:00:44]} bxc6 {[%emt 0:00:35]} 6. Nc3 {[%emt 0:01:13]} d6 {[%emt 0:01:19]} 7. Bd3 {[%emt 0:01:57]} Be6 {[%emt 0:00:56]} 8. O-O {[%emt 0:01:20]} Ne7 {[%emt 0:01:48]} 9. Re1 {[%emt 0:01:02]} O-O {[%emt 0:00:33]} 10. Be3 {[%emt 0:05:37]} Bxe3 {[%emt 0:04:23]} 11. Rxe3 {[%emt 0:01:17]} Rb8 {[%emt 0:00:49]} 12. Rb1 {[%emt 0:01:28]} Ng6 {[%emt 0:01:37]} 13. Bf1 {[%emt 0:13:12]} d5 {[%emt 0:03:59]} 14. exd5 {[%emt 0:05:21]} cxd5 {[%emt 0:00:17]} 15. Rd3 {[%emt 0:02:11]} c6 {[%emt 0:11:47]} 16. Ne2 {[%emt 0:06:00]} Ne5 {[%emt 0:04:58]} 17. Rg3 {[%emt 0:03:43]} Nc4 {[%emt 0:04:25]} 18. b3 {[%emt 0:03:44]} Na3 {[%emt 0:03:58]} 19. Rb2 {[%emt 0:03:17]} Qf6 {[%emt 0:04:21]} 20. Qd4 {[%emt 0:09:05]} Qxd4 {[%emt 0:01:07]} 21. Nxd4 {[%emt 0:00:17]} c5 {[%emt 0:07:37]} 22. Nc6 {[%emt 0:02:20]} Rb6 {[%emt 0:03:51]} 23. Ne5 {[%emt 0:02:41]} Re8 {[%emt 0:00:47]} 24. f4 {[%emt 0:07:58]} c4 {[%emt 0:01:44]} 25. b4 {[%emt 0:01:05]} Nb5 {[%emt 0:02:37]} 26. a4 {[%emt 0:02:30]} Nd6 {[%emt 0:01:10]} 27. a5 {[%emt 0:02:29]} Ra6 {[%emt 0:01:10]} 28. c3 {[%emt 0:04:49]} Rb8 {[%emt 0:01:57]} 29. Be2 {[%emt 0:01:39]} Rxa5 {[%emt 0:01:37]} 30. Nc6 {[%emt 0:02:15]} Ra1+ {[%emt 0:00:15]} 31. Kf2 {[%emt 0:00:05]} Rb6 {[%emt 0:01:15]} 32. Nd4 {[%emt 0:00:36]} Ne4+ {[%emt 0:00:17]} 0-1

[Event "FIDE WCCC Girls-10 2024"]
[Site "Montesilvano"]
[Date "2024.11.18"]
[Round "4.35"]
[White "Kravchuk, Daria"]
[Black "Vitsiuk, Aleksandra"]
[Result "1-0"]
[Annotator "NA RC"]
[ECO "C47"]
[WhiteElo "1569"]
[BlackElo "1476"]
[PlyCount "81"]
[EventDate "2024.11.18"]
[EventType "swiss"]
[EventCountry "ITA"]
[SourceTitle "playchess.com"]
[Source "ChessBase"]
[SourceQuality "1"]
[TimeControl "5400+30"]

1. e4 {[%emt 0:00:05]} e5 {[%emt 0:00:08]} 2. Nf3 {[%emt 0:00:11]} Nc6 {[%emt 0:00:23]} 3. Nc3 {[%emt 0:00:09]} Nf6 {[%emt 0:00:27]} 4. a3 {[%emt 0:00:10]} d5 {[%emt 0:01:02]} 5. Bb5 {[%emt 0:00:46]} Bg4 {[%emt 0:01:04]} 6. exd5 {[%emt 0:07:23]} Nxd5 {[%emt 0:00:57]} 7. h3 {[%emt 0:01:01]} Nxc3 {[%emt 0:01:47]} 8. bxc3 {[%emt 0:00:53]} Bxf3 {[%emt 0:00:57]} 9. Qxf3 {[%emt 0:00:31]} Qd7 {[%emt 0:01:00]} 10. d4 {[%emt 0:01:45]} exd4 {[%emt 0:01:45]} 11. cxd4 {[%emt 0:00:20]} a6 {[%emt 0:00:49]} 12. Bxc6 {[%emt 0:00:35]} bxc6 {[%emt 0:00:16]} 13. Be3 {[%emt 0:01:07]} Be7 {[%emt 0:01:15]} 14. O-O {[%emt 0:00:53]} O-O {[%emt 0:00:19]} 15. Qe2 {[%emt 0:04:43]} Rfe8 {[%emt 0:01:31]} 16. Qd3 {[%emt 0:01:01]} Bf6 {[%emt 0:01:51]} 17. Rab1 {[%emt 0:03:59]} Qd6 {[%emt 0:08:54]} 18. Rfd1 {[%emt 0:04:47]} a5 {[%emt 0:00:58]} 19. a4 {[%emt 0:05:57]} Re6 {[%emt 0:09:44]} 20. Rb3 {[%emt 0:11:24]} Bh4 {[%emt 0:01:56]} 21. Rdb1 {[%emt 0:04:19]} Rf8 {[%emt 0:06:26]} 22. Rb8 {[%emt 0:08:55]} Be7 {[%emt 0:02:09]} 23. c4 {[%emt 0:10:03]} Qd7 {[%emt 0:04:16]} 24. Rxf8+ {[%emt 0:09:29]} Bxf8 {[%emt 0:00:15]} 25. Bd2 {[%emt 0:01:57]} Rd6 {[%emt 0:02:10]} 26. Bc3 {[%emt 0:01:04]} c5 {[%emt 0:01:58]} 27. d5 {[%emt 0:01:09]} c6 {[%emt 0:01:59]} 28. Be5 {[%emt 0:05:24]} Rg6 {[%emt 0:48:14]} 29. d6 {[%emt 0:01:09]} h6 {[%emt 0:00:00]} 30. Rb8 {[%emt 0:01:29]} Re6 {[%emt 0:00:00]} 31. Bg3 {[%emt 0:01:17]} Re1+ {[%emt 0:00:00]} 32. Kh2 {[%emt 0:00:14]} Ra1 {[%emt 0:00:00]} 33. Qe4 {[%emt 0:03:20]} Qa7 {[%emt 0:00:00]} 34. Qe8 {[%emt 0:00:22]} Kh7 {[%emt 0:00:00]} 35. Qxf8 {[%emt 0:00:26]} Rxa4 {[%emt 0:00:00]} 36. Re8 {[%emt 0:01:00]} Ra1 {[%emt 0:04:00]} 37. Rb8 Ra4 {[%emt 0:00:00]} 38. Re8 Qb6 {[%emt 0:00:00]} 39. Qxf7 {[%emt 0:01:22]} Qb1 {[%emt 0:00:00]} 40. Re7 {[%emt 0:00:28]} Qb2 {[%emt 0:00:00]} 41. Be5 {[%emt 0:00:22]} 1-0

[Event "FIDE WCCC Girls-10 2024"]
[Site "Montesilvano"]
[Date "2024.11.18"]
[Round "4.37"]
[White "Minasyan, Arina"]
[Black "Mamarasulova, Yasmina"]
[Result "0-1"]
[Annotator "NA RC"]
[ECO "E12"]
[WhiteElo "1545"]
[BlackElo "1444"]
[PlyCount "106"]
[EventDate "2024.11.18"]
[EventType "swiss"]
[EventCountry "ITA"]
[SourceTitle "playchess.com"]
[Source "ChessBase"]
[SourceQuality "1"]
[TimeControl "5400+30"]

1. d4 {[%emt 0:00:06]} Nf6 {[%emt 0:00:09]} 2. c4 {[%emt 0:00:05]} e6 {[%emt 0:00:03]} 3. Nf3 {[%emt 0:00:08]} b6 {[%emt 0:00:07]} 4. a3 {[%emt 0:00:04]} Bb7 {[%emt 0:00:15]} 5. Nc3 {[%emt 0:01:18]} Be7 {[%emt 0:01:29]} 6. e3 {[%emt 0:01:57]} d6 {[%emt 1:31:27]} 7. Bd3 {[%emt 0:02:00]} O-O {[%emt 0:00:00]} 8. O-O {[%emt 0:03:44]} Nbd7 {[%emt 0:00:00]} 9. b4 {[%emt 0:02:20]} c5 {[%emt 0:00:00]} 10. d5 {[%emt 0:04:56]} cxb4 {[%emt 0:00:00]} 11. axb4 {[%emt 0:00:12]} e5 {[%emt 0:00:00]} 12. e4 {[%emt 0:04:27]} a5 {[%emt 0:00:00]} 13. bxa5 {[%emt 0:06:55]} bxa5 {[%emt 0:00:00]} 14. Rb1 {[%emt 0:02:02]} Ba6 {[%emt 0:00:00]} 15. Ba3 {[%emt 0:08:47]} Rc8 {[%emt 0:00:00]} 16. Nb5 {[%emt 0:59:29]} Nc5 {[%emt 0:00:00]} 17. Qe2 {[%emt 0:00:00]} Bxb5 {[%emt 0:00:00]} 18. Rxb5 {[%emt 0:00:00]} Nxd3 {[%emt 0:06:00]} 19. Qxd3 {[%emt 0:00:00]} Qc7 {[%emt 0:00:00]} 20. c5 {[%emt 0:00:00]} dxc5 {[%emt 0:00:00]} 21. Rc1 {[%emt 0:00:00]} c4 {[%emt 0:00:00]} 22. Qe3 {[%emt 0:00:00]} Bxa3 {[%emt 0:00:00]} 23. Qxa3 {[%emt 0:00:00]} Nxe4 {[%emt 0:00:00]} 24. Re1 {[%emt 0:00:00]} Nd6 {[%emt 0:00:00]} 25. Rxa5 {[%emt 0:00:00]} e4 {[%emt 0:00:00]} 26. Nd4 {[%emt 0:00:00]} c3 {[%emt 0:00:00]} 27. Nc6 {[%emt 0:00:00]} Nc4 {[%emt 0:00:00]} 28. Qb4 {[%emt 0:00:00]} Nxa5 {[%emt 0:00:00]} 29. Ne7+ {[%emt 0:00:00]} Kh8 {[%emt 0:00:00]} 30. Nxc8 {[%emt 0:00:00]} Rxc8 {[%emt 0:00:00]} 31. Qxe4 {[%emt 0:00:00]} Qd7 {[%emt 0:00:00]} 32. Qc2 {[%emt 0:00:00]} Qxd5 {[%emt 0:00:00]} 33. Qxc3 {[%emt 0:00:00]} Qd8 {[%emt 0:00:00]} 34. Qe3 {[%emt 0:00:00]} h6 {[%emt 0:00:00]} 35. Qe4 {[%emt 0:00:00]} Nc6 {[%emt 0:00:00]} 36. h3 {[%emt 0:00:00]} Qd4 {[%emt 0:02:03]} 37. Qf5 {[%emt 0:00:00]} Rf8 {[%emt 0:00:18]} 38. Rc1 {[%emt 0:00:00]} Ne5 {[%emt 0:01:06]} 39. Rc8 {[%emt 0:00:00]} Rxc8 {[%emt 0:07:03]} 40. Qxc8+ {[%emt 0:12:00]} Kh7 {[%emt 0:00:00]} 41. Qf5+ {[%emt 0:00:00]} g6 {[%emt 0:00:00]} 42. Qf6 {[%emt 0:00:00]} Qa1+ {[%emt 0:00:00]} 43. Kh2 {[%emt 0:00:00]} Ng4+ {[%emt 0:00:00]} 44. hxg4 {[%emt 0:00:00]} Qxf6 {[%emt 0:00:00]} 45. g5 {[%emt 0:00:00]} Qxg5 {[%emt 0:00:00]} 46. f4 {[%emt 0:00:00]} Qxf4+ {[%emt 0:00:00]} 47. g3 {[%emt 0:00:00]} Qf2+ {[%emt 0:00:00]} 48. Kh3 {[%emt 0:00:00]} f5 {[%emt 0:00:00]} 49. g4 {[%emt 0:00:00]} Qf3+ {[%emt 0:00:00]} 50. Kh2 {[%emt 0:00:00]} Qxg4 {[%emt 0:00:00]} 51. Kh1 {[%emt 0:00:00]} f4 {[%emt 0:00:00]} 52. Kh2 {[%emt 0:00:00]} f3 {[%emt 0:00:00]} 53. Kh1 {[%emt 0:00:00]} Qg2# {[%emt 0:00:00]} 0-1

[Event "FIDE WCCC Girls-10 2024"]
[Site "Montesilvano"]
[Date "2024.11.18"]
[Round "4.38"]
[White "Mence, Jasmina"]
[Black "Muradli, Sabira"]
[Result "0-1"]
[Annotator "NA RC"]
[ECO "C54"]
[WhiteElo "1542"]
[BlackElo "1430"]
[PlyCount "74"]
[EventDate "2024.11.18"]
[EventType "swiss"]
[EventCountry "ITA"]
[SourceTitle "playchess.com"]
[Source "ChessBase"]
[SourceQuality "1"]
[TimeControl "5400+30"]

1. e4 {[%emt 0:00:03]} e5 {[%emt 0:00:03]} 2. Nf3 {[%emt 0:00:12]} Nc6 {[%emt 0:00:05]} 3. d4 {[%emt 0:00:12]} exd4 {[%emt 0:00:05]} 4. Bc4 {[%emt 0:00:15]} Bc5 {[%emt 0:01:47]} 5. c3 {[%emt 0:00:23]} Nf6 {[%emt 0:02:53]} 6. e5 {[%emt 0:02:35]} Ng4 {[%emt 0:04:27]} 7. cxd4 {[%emt 0:03:17]} Bb4+ {[%emt 0:00:10]} 8. Bd2 {[%emt 0:08:23]} Bxd2+ {[%emt 0:01:19]} 9. Nbxd2 {[%emt 0:01:13]} O-O {[%emt 0:00:20]} 10. Qe2 {[%emt 0:02:26]} d6 {[%emt 0:00:14]} 11. O-O {[%emt 0:04:56]} dxe5 {[%emt 0:03:53]} 12. h3 {[%emt 0:08:10]} Nf6 {[%emt 0:02:07]} 13. dxe5 {[%emt 0:02:11]} Re8 {[%emt 0:04:29]} 14. Qe3 {[%emt 0:07:33]} Nd5 {[%emt 0:01:08]} 15. Qe4 {[%emt 0:12:04]} Be6 {[%emt 0:07:52]} 16. Bd3 {[%emt 0:03:34]} g6 {[%emt 0:00:45]} 17. Bb5 {[%emt 0:07:50]} Bf5 {[%emt 0:03:50]} 18. Qc4 {[%emt 0:01:43]} Nb6 {[%emt 0:01:00]} 19. Qc3 {[%emt 0:08:16]} Nd5 {[%emt 0:05:41]} 20. Qc4 {[%emt 0:00:51]} Re6 {[%emt 0:01:56]} 21. Bxc6 {[%emt 0:02:27]} Rxc6 {[%emt 0:00:30]} 22. Qb3 {[%emt 0:01:48]} Bc2 {[%emt 0:02:13]} 23. Qa3 {[%emt 0:03:58]} Nf4 {[%emt 0:00:13]} 24. Qe3 {[%emt 0:02:56]} Nd3 {[%emt 0:05:44]} 25. Qh6 {[%emt 0:04:00]} Qf8 {[%emt 0:02:43]} 26. Qxf8+ {[%emt 0:00:50]} Rxf8 {[%emt 0:00:04]} 27. Nd4 {[%emt 0:00:55]} Rb6 {[%emt 0:11:25]} 28. b3 {[%emt 0:01:12]} Nb4 {[%emt 0:00:15]} 29. a3 {[%emt 0:01:16]} Bd3 {[%emt 0:00:05]} 30. Rfc1 {[%emt 0:02:15]} Nd5 {[%emt 0:00:29]} 31. Rc5 {[%emt 0:01:05]} Rd8 {[%emt 0:04:15]} 32. Nc4 {[%emt 0:01:34]} Bxc4 {[%emt 0:00:33]} 33. bxc4 {[%emt 0:00:30]} Nf4 {[%emt 0:01:02]} 34. Rd1 {[%emt 0:01:44]} Rxd4 {[%emt 0:04:40]} 35. Rxd4 {[%emt 0:01:05]} Ne2+ {[%emt 0:00:03]} 36. Kf1 {[%emt 0:00:41]} Nxd4 {[%emt 0:00:05]} 37. Rd5 {[%emt 0:01:01]} Rb1# {[%emt 0:00:39]} 0-1

[Event "FIDE WCCC Girls-10 2024"]
[Site "Montesilvano"]
[Date "2024.11.18"]
[Round "4.40"]
[White "Kovacikova, Simona"]
[Black "Ritinioti, Sofia"]
[Result "0-1"]
[Annotator "NA RC"]
[ECO "B08"]
[WhiteElo "1412"]
[BlackElo "1534"]
[PlyCount "110"]
[EventDate "2024.11.18"]
[EventType "swiss"]
[EventCountry "ITA"]
[SourceTitle "playchess.com"]
[Source "ChessBase"]
[SourceQuality "1"]
[TimeControl "5400+30"]

1. e4 {[%emt 0:01:54]} d6 {[%emt 0:00:06]} 2. d4 {[%emt 0:00:06]} Nf6 {[%emt 0:00:18]} 3. Nc3 {[%emt 0:00:13]} g6 {[%emt 0:00:11]} 4. Nf3 {[%emt 0:00:13]} Bg7 {[%emt 0:00:18]} 5. Be3 {[%emt 0:00:20]} O-O {[%emt 0:00:46]} 6. Qd2 {[%emt 0:00:24]} c6 {[%emt 0:01:09]} 7. Bh6 {[%emt 0:00:58]} b5 {[%emt 0:01:11]} 8. Bd3 {[%emt 0:00:26]} Qa5 {[%emt 0:01:37]} 9. Bxg7 {[%emt 0:02:08]} Kxg7 {[%emt 0:00:18]} 10. h4 {[%emt 0:01:20]} h5 {[%emt 0:01:06]} 11. Ng5 {[%emt 0:06:36]} Nbd7 {[%emt 0:04:00]} 12. f3 {[%emt 0:01:56]} Nb6 {[%emt 0:03:49]} 13. b3 {[%emt 0:06:24]} Bd7 {[%emt 0:10:02]} 14. g4 {[%emt 0:04:24]} hxg4 {[%emt 0:03:29]} 15. fxg4 {[%emt 0:00:57]} Bxg4 {[%emt 0:01:19]} 16. a3 {[%emt 0:08:21]} Rab8 {[%emt 0:07:10]} 17. b4 {[%emt 0:00:53]} Qa6 {[%emt 0:00:39]} 18. Be2 {[%emt 0:02:59]} Bh5 {[%emt 0:02:45]} 19. Bxh5 {[%emt 0:05:23]} Nxh5 {[%emt 0:00:35]} 20. Nh3 {[%emt 0:01:29]} Nc4 {[%emt 0:01:43]} 21. Qc1 {[%emt 0:04:22]} Rbc8 {[%emt 0:05:37]} 22. Rh2 {[%emt 0:07:33]} Qb6 {[%emt 0:05:43]} 23. Ne2 {[%emt 0:03:19]} a5 {[%emt 0:03:15]} 24. Nhf4 {[%emt 0:01:26]} Nxf4 {[%emt 0:05:26]} 25. Qxf4 {[%emt 0:00:50]} Rh8 {[%emt 0:04:17]} 26. c3 {[%emt 0:04:50]} axb4 {[%emt 0:01:36]} 27. axb4 {[%emt 0:01:07]} c5 {[%emt 0:02:37]} 28. bxc5 {[%emt 0:09:05]} dxc5 {[%emt 0:00:31]} 29. e5 {[%emt 0:02:57]} cxd4 {[%emt 0:06:03]} 30. cxd4 {[%emt 0:00:48]} Rh7 {[%emt 0:06:15]} 31. Qg4 {[%emt 0:02:22]} Qe6 {[%emt 0:02:00]} 32. Qxe6 {[%emt 0:05:58]} fxe6 {[%emt 0:00:11]} 33. Rb1 {[%emt 0:00:34]} Rb8 {[%emt 0:01:15]} 34. Nc3 {[%emt 0:00:28]} b4 {[%emt 0:01:16]} 35. Na2 {[%emt 0:00:17]} b3 {[%emt 0:00:24]} 36. Nc1 {[%emt 0:00:26]} Na5 {[%emt 0:01:16]} 37. Kd2 {[%emt 0:00:58]} Rb4 {[%emt 0:03:20]} 38. Kd3 {[%emt 0:02:02]} b2 {[%emt 0:02:34]} 39. Rbxb2 {[%emt 0:03:11]} Rxb2 {[%emt 0:00:13]} 40. Rxb2 {[%emt 0:00:04]} Rxh4 {[%emt 0:00:37]} 41. Rb5 {[%emt 0:01:55]} Nc6 {[%emt 0:00:46]} 42. Nb3 {[%emt 0:00:22]} Rh3+ {[%emt 0:02:14]} 43. Kc4 {[%emt 0:09:42]} Rxb3 {[%emt 0:01:22]} 44. Rxb3 {[%emt 0:00:00]} Na5+ {[%emt 0:00:12]} 45. Kc3 {[%emt 0:00:00]} Nxb3 {[%emt 0:00:08]} 46. Kxb3 {[%emt 0:00:00]} Kh6 {[%emt 0:01:09]} 47. Kc3 {[%emt 0:00:00]} Kg5 {[%emt 0:00:20]} 48. Kd3 {[%emt 0:00:00]} Kf4 {[%emt 0:00:18]} 49. d5 {[%emt 0:00:00]} Kxe5 {[%emt 0:01:20]} 50. dxe6 {[%emt 0:00:00]} g5 {[%emt 0:00:54]} 51. Ke3 {[%emt 0:00:00]} Kxe6 {[%emt 0:00:51]} 52. Ke4 {[%emt 0:00:00]} Kf6 {[%emt 0:00:20]} 53. Kf3 {[%emt 0:00:00]} Kf5 {[%emt 0:00:22]} 54. Kg3 {[%emt 0:00:00]} e5 {[%emt 0:00:18]} 55. Kf3 {[%emt 0:00:00]} e4+ {[%emt 0:00:37]} 0-1

[Event "FIDE WCCC Girls-10 2024"]
[Site "Montesilvano"]
[Date "2024.11.18"]
[Round "4.44"]
[White "Giss, Annika"]
[Black "Khelfallah, Ikhlas"]
[Result "0-1"]
[Annotator "NA RC"]
[ECO "C55"]
[WhiteElo "1586"]
[BlackElo "1449"]
[PlyCount "58"]
[EventDate "2024.11.18"]
[EventType "swiss"]
[EventCountry "ITA"]
[SourceTitle "playchess.com"]
[Source "ChessBase"]
[SourceQuality "1"]
[TimeControl "5400+30"]

1. e4 {[%emt 0:00:01]} e5 {[%emt 0:00:26]} 2. Nf3 {[%emt 0:00:07]} Nc6 {[%emt 0:00:20]} 3. Bc4 {[%emt 0:00:09]} Nf6 {[%emt 0:00:23]} 4. d3 {[%emt 0:00:43]} h6 {[%emt 0:01:07]} 5. O-O {[%emt 0:00:30]} Be7 {[%emt 0:02:45]} 6. c3 {[%emt 0:00:46]} O-O {[%emt 0:00:45]} 7. Be3 {[%emt 0:00:25]} a6 {[%emt 0:02:45]} 8. h3 {[%emt 0:00:55]} d6 {[%emt 0:01:22]} 9. Nbd2 {[%emt 0:01:51]} Na5 {[%emt 0:00:41]} 10. Bb3 {[%emt 0:06:45]} Nxb3 {[%emt 0:02:59]} 11. Qxb3 {[%emt 0:01:32]} b6 {[%emt 0:05:19]} 12. Rfd1 {[%emt 0:02:39]} Bb7 {[%emt 0:02:12]} 13. Nf1 {[%emt 0:00:33]} Re8 {[%emt 0:04:35]} 14. Ng3 {[%emt 0:01:04]} Bf8 {[%emt 0:02:40]} 15. Nf5 {[%emt 0:12:54]} Qd7 {[%emt 0:05:22]} 16. Rab1 {[%emt 0:12:19]} Nxe4 {[%emt 0:03:35]} 17. N5h4 {[%emt 0:02:20]} Nf6 {[%emt 0:00:41]} 18. a4 {[%emt 0:02:44]} Qe6 {[%emt 0:04:32]} 19. Qxe6 {[%emt 0:02:22]} Rxe6 {[%emt 0:00:24]} 20. Rbc1 {[%emt 0:00:33]} Ree8 {[%emt 0:01:24]} 21. d4 {[%emt 0:03:54]} e4 {[%emt 0:01:18]} 22. Nd2 {[%emt 0:01:10]} Bc8 {[%emt 0:01:19]} 23. Re1 {[%emt 0:01:21]} g5 {[%emt 0:00:16]} 24. Nxe4 {[%emt 0:03:05]} Rxe4 {[%emt 0:06:46]} 25. Nf3 {[%emt 0:00:33]} Bb7 {[%emt 0:03:08]} 26. Nd2 {[%emt 0:01:03]} Re6 {[%emt 0:03:33]} 27. c4 {[%emt 0:00:43]} Rae8 {[%emt 0:03:38]} 28. d5 {[%emt 0:00:29]} R6e7 {[%emt 0:01:36]} 29. Nf3 {[%emt 0:01:27]} Bc8 {[%emt 0:02:56]} 0-1

[Event "FIDE WCCC Girls-10 2024"]
[Site "Montesilvano"]
[Date "2024.11.18"]
[Round "4.45"]
[White "Deviatkova, Diana"]
[Black "Foong, Livia"]
[Result "0-1"]
[Annotator "NA RC"]
[ECO "C01"]
[WhiteElo "1503"]
[BlackElo "1461"]
[PlyCount "92"]
[EventDate "2024.11.18"]
[EventType "swiss"]
[EventCountry "ITA"]
[SourceTitle "playchess.com"]
[Source "ChessBase"]
[SourceQuality "1"]
[TimeControl "5400+30"]

1. e4 {[%emt 0:00:03]} e6 {[%emt 0:00:11]} 2. d4 {[%emt 0:00:10]} d5 {[%emt 0:00:04]} 3. Bd3 {[%emt 0:00:58]} dxe4 {[%emt 0:00:21]} 4. Bxe4 {[%emt 0:00:08]} c5 {[%emt 0:00:06]} 5. c3 {[%emt 0:00:24]} Nf6 {[%emt 0:00:13]} 6. f3 {[%emt 0:01:32]} Be7 {[%emt 0:00:32]} 7. Be3 {[%emt 0:00:35]} Qb6 {[%emt 0:00:30]} 8. Qc2 {[%emt 0:02:39]} Nc6 {[%emt 0:00:20]} 9. Ne2 {[%emt 0:03:28]} O-O {[%emt 0:00:41]} 10. Nd2 {[%emt 0:01:40]} Bd7 {[%emt 0:00:22]} 11. Nb3 {[%emt 0:01:48]} cxd4 {[%emt 0:00:45]} 12. Nbxd4 {[%emt 0:04:38]} Rfe8 {[%emt 0:01:11]} 13. O-O {[%emt 0:00:46]} e5 {[%emt 0:00:38]} 14. Nf5 {[%emt 0:00:29]} Bc5 {[%emt 0:00:33]} 15. Qc1 {[%emt 0:02:21]} Bxf5 {[%emt 0:00:22]} 16. Bxc5 {[%emt 0:01:57]} Qxc5+ {[%emt 0:00:07]} 17. Kh1 {[%emt 0:00:04]} Bxe4 {[%emt 0:00:32]} 18. fxe4 {[%emt 0:00:08]} Nxe4 {[%emt 0:00:13]} 19. h3 {[%emt 0:01:28]} Nf2+ {[%emt 0:00:46]} 20. Kh2 {[%emt 0:00:22]} Nd3 {[%emt 0:00:20]} 21. Qc2 {[%emt 0:01:15]} e4 {[%emt 0:00:11]} 22. Kh1 {[%emt 0:02:26]} Nf2+ {[%emt 0:00:30]} 23. Kh2 {[%emt 0:00:17]} Qe5+ {[%emt 0:00:38]} 24. Kg1 {[%emt 0:00:11]} Nd3 {[%emt 0:00:22]} 25. Kh1 {[%emt 0:01:54]} Re6 {[%emt 0:00:27]} 26. a3 {[%emt 0:02:27]} Rg6 {[%emt 0:00:22]} 27. Nd4 {[%emt 0:03:19]} Nxd4 {[%emt 1:32:43]} 28. cxd4 {[%emt 0:00:07]} Qxd4 {[%emt 0:00:00]} 29. Rad1 {[%emt 0:02:40]} Qxb2 {[%emt 0:00:00]} 30. Qxb2 {[%emt 0:00:12]} Nxb2 {[%emt 0:00:00]} 31. Rd7 {[%emt 0:00:24]} b6 {[%emt 0:00:00]} 32. Rdxf7 {[%emt 0:02:42]} e3 {[%emt 0:00:00]} 33. Re7 {[%emt 0:00:29]} Nc4 {[%emt 0:00:00]} 34. Re1 {[%emt 0:01:28]} Rc8 {[%emt 0:00:00]} 35. Rc1 {[%emt 0:06:31]} Kf8 {[%emt 0:00:00]} 36. Re4 {[%emt 0:01:21]} b5 {[%emt 0:00:00]} 37. Rf1+ {[%emt 0:02:54]} Kg8 {[%emt 0:00:00]} 38. Rc1 {[%emt 0:00:07]} Rf6 {[%emt 0:00:00]} 39. Re7 {[%emt 0:04:23]} Rf2 {[%emt 0:00:00]} 40. Re1 {[%emt 0:01:27]} Kf8 {[%emt 0:00:00]} 41. Re4 {[%emt 0:00:38]} Rd8 {[%emt 0:00:00]} 42. Kg1 {[%emt 0:00:50]} Rdd2 {[%emt 0:00:00]} 43. h4 {[%emt 0:00:10]} Rxg2+ {[%emt 0:00:00]} 44. Kh1 {[%emt 0:00:20]} Rh2+ {[%emt 0:00:00]} 45. Kg1 {[%emt 0:00:03]} Rdg2+ {[%emt 0:00:00]} 46. Kf1 {[%emt 0:00:09]} Nd2# {[%emt 0:00:00]} 0-1